bitfinex-derivatives/quotes_BTCF0:USTF0_20240929
["timestamp","ask_amount","ask_price","bid_price","bid_amount"]
[1727606316224,0.525726,65552.0,65551.0,0.002]
[1727606319024,0.164926,65552.0,65551.0,0.002]
[1727606319218,0.886526,65552.0,65551.0,0.002]
[1727606319824,0.164926,65552.0,65551.0,0.002]
[1727606320026,0.886526,65552.0,65551.0,0.002]
[1727606321027,0.076267,65549.0,65548.0,0.01910207]
[1727606321325,0.07627,65546.0,65545.0,0.00228812]
[1727606321523,0.54747,65546.0,65545.0,0.10167417]
[1727606321723,0.62374,65546.0,65545.0,0.10167417]
[1727606321919,0.62374,65546.0,65545.0,0.09938605]
[1727606322128,0.076276,65541.0,65540.0,0.0036]
[1727606322339,0.04841679,65541.0,65535.0,0.0685]
[1727606322534,0.04841679,65541.0,65535.0,0.0649]
[1727606322535,0.0004,65536.0,65535.0,0.0649]
[1727606322830,0.0104,65536.0,65535.0,0.0649]
[1727606323235,0.086682,65536.0,65535.0,0.0649]
[1727606324140,0.089682,65536.0,65535.0,0.0659]
[1727606324723,0.089682,65536.0,65535.0,0.09382467]
[1727606325730,0.092682,65536.0,65535.0,0.09482467]
[1727606329230,0.05925213,65536.0,65535.0,0.31254646]
[1727606331430,0.05925213,65536.0,65535.0,0.3117405]
[1727606332938,0.05925213,65536.0,65535.0,0.28381583]
[1727606336236,0.05925213,65536.0,65535.0,0.0669]
[1727606341937,0.03925213,65536.0,65535.0,0.1126172]
[1727606342142,0.03925213,65536.0,65535.0,0.11263578]
[1727606342543,0.04925213,65536.0,65535.0,0.11263578]
[1727606342940,0.04925213,65536.0,65535.0,0.11263582]
[1727606343342,0.03925213,65536.0,65535.0,0.11263582]
[1727606344145,0.03925213,65536.0,65535.0,0.28398055]
[1727606349552,0.03925213,65536.0,65535.0,0.0669]
[1727606349857,0.03925213,65536.0,65535.0,0.28412137]
[1727606359163,0.3608,65540.0,65535.0,0.0669]
[1727606359371,0.03875387,65539.0,65535.0,0.0669]
[1727606359565,0.3608,65540.0,65535.0,0.0669]
[1727606359771,0.03875367,65539.0,65535.0,0.0669]
[1727606359967,0.076282,65536.0,65535.0,0.0669]
[1727606361381,0.079282,65536.0,65535.0,0.0669]
[1727606361680,0.079282,65536.0,65535.0,0.0659]
[1727606361888,0.079282,65536.0,65535.0,0.0669]
[1727606362284,0.079282,65536.0,65535.0,0.0659]
[1727606362485,0.079282,65536.0,65535.0,0.11268339]
[1727606366292,0.079282,65536.0,65535.0,0.28374766]
[1727606373990,0.079282,65536.0,65535.0,0.28370404]
[1727606374188,0.20089519,65536.0,65535.0,0.0669]
[1727606374591,0.23965204,65536.0,65535.0,0.0669]
[1727606374789,0.28465056,65536.0,65535.0,0.0669]
[1727606378304,0.28463565,65536.0,65535.0,0.0669]
[1727606381208,0.20089519,65536.0,65535.0,0.28372342]
[1727606381403,0.079282,65536.0,65535.0,0.28372342]
[1727606383903,0.079282,65536.0,65535.0,0.28415268]
[1727606387606,0.119282,65536.0,65535.0,0.19270821]
[1727606387798,0.079282,65536.0,65535.0,0.19270821]
[1727606388700,0.079282,65536.0,65535.0,0.09359485]
[1727606388908,0.079282,65536.0,65535.0,0.1927218]
[1727606389404,0.11778576,65536.0,65535.0,0.002]
[1727606390213,0.12778576,65536.0,65535.0,0.002]
[1727606390512,0.17249031,65536.0,65535.0,0.002]
[1727606393012,0.21340393,65536.0,65535.0,0.002]
[1727606393710,0.21342308,65536.0,65535.0,0.002]
[1727606395005,0.2134207,65536.0,65535.0,0.002]
[1727606396417,0.2134207,65536.0,65535.0,0.21922529]
[1727606396418,0.003,65536.0,65535.0,0.21922529]
[1727606397116,0.079282,65536.0,65535.0,0.21922529]
[1727606398700,0.079282,65536.0,65535.0,0.21837966]
[1727606399914,0.089282,65536.0,65535.0,0.21837966]
[1727606400116,0.079282,65536.0,65535.0,0.21837966]
[1727606400715,0.109282,65536.0,65535.0,0.21837966]
[1727606402118,0.109282,65536.0,65535.0,0.21830151]
[1727606407021,0.109282,65536.0,65535.0,0.21828033]
[1727606409521,0.079282,65536.0,65535.0,0.21828033]
[1727606411318,0.11826839,65536.0,65535.0,0.002]
[1727606411623,0.16353341,65536.0,65535.0,0.002]
[1727606412921,0.28535291,65536.0,65535.0,0.002]
[1727606416626,0.2011015,65536.0,65535.0,0.002]
[1727606416819,0.24013258,65536.0,65535.0,0.002]
[1727606417024,0.28544949,65536.0,65535.0,0.002]
[1727606417421,0.20916749,65536.0,65535.0,0.002]
[1727606417625,0.08734799,65536.0,65535.0,0.002]
[1727606417830,0.08734799,65536.0,65535.0,0.0351]
[1727606419426,0.08734799,65536.0,65535.0,0.49417711]
[1727606419427,0.003,65536.0,65535.0,0.49417711]
[1727606421134,0.003,65536.0,65535.0,0.49419156]
[1727606421530,0.003,65536.0,65535.0,0.49414747]
[1727606421928,0.003,65536.0,65535.0,0.54397126]
[1727606422136,0.0004,65541.0,65539.0,0.076278]
[1727606422334,0.0004,65541.0,65540.0,0.32541133]
[1727606424334,0.0004,65541.0,65540.0,0.32477031]
[1727606424639,0.0004,65541.0,65540.0,0.32577031]
[1727606425140,0.0004,65541.0,65540.0,0.32677031]
[1727606426434,0.0392532,65541.0,65540.0,0.111277]
[1727606428930,0.0392532,65541.0,65540.0,0.13903681]
[1727606431238,0.0392532,65541.0,65540.0,0.06275981]
[1727606434443,0.076275,65542.0,65540.0,0.27823282]
[1727606434740,0.076275,65542.0,65541.0,0.09830145]
[1727606436438,0.076275,65542.0,65541.0,0.09930145]
[1727606436641,0.076275,65542.0,65541.0,0.10030145]
[1727606438341,0.076275,65542.0,65541.0,0.002]
[1727606439541,0.076275,65542.0,65541.0,0.10027958]
[1727606442048,0.076275,65542.0,65541.0,0.002]
[1727606451255,0.076275,65542.0,65541.0,0.21764938]
[1727606452647,0.076275,65542.0,65541.0,0.21770538]
[1727606456356,0.3608,65545.0,65541.0,0.21770538]
[1727606456660,0.3608,65545.0,65542.0,0.21570538]
[1727606456843,0.14627167,65544.0,65541.0,0.002]
[1727606457048,0.0004,65542.0,65541.0,0.002]
[1727606457250,0.04018288,65542.0,65541.0,0.002]
[1727606457557,0.04018288,65542.0,65541.0,0.001]
[1727606457760,0.04018288,65542.0,65541.0,0.002]
[1727606458350,0.04018288,65542.0,65541.0,0.001]
[1727606458660,0.04018288,65542.0,65541.0,0.002]
[1727606461155,0.04017864,65542.0,65541.0,0.002]
[1727606463953,0.0004,65542.0,65541.0,0.21689727]
[1727606465654,0.0004,65542.0,65541.0,0.21689841]
[1727606471681,0.076675,65542.0,65541.0,0.21689841]
[1727606473587,0.086675,65542.0,65541.0,0.21689841]
[1727606475891,0.076675,65542.0,65541.0,0.21689841]
[1727606476186,0.0004,65542.0,65541.0,0.21689841]
[1727606476385,0.0004,65542.0,65541.0,0.29317441]
[1727606476983,0.0004,65542.0,65541.0,0.21689841]
[1727606478890,0.19837647,65542.0,65541.0,0.002]
[1727606479180,0.28446266,65542.0,65541.0,0.002]
[1727606479386,0.29446266,65542.0,65541.0,0.002]
[1727606479588,0.28446266,65542.0,65541.0,0.002]
[1727606480374,0.28444656,65542.0,65541.0,0.002]
[1727606482882,0.29444656,65542.0,65541.0,0.002]
[1727606483396,0.28444656,65542.0,65541.0,0.002]
[1727606483978,0.29444656,65542.0,65541.0,0.002]
[1727606485277,0.17274176,65542.0,65541.0,0.002]
[1727606485486,0.20850318,65542.0,65541.0,0.002]
[1727606485690,0.29456994,65542.0,65541.0,0.002]
[1727606485889,0.17274176,65542.0,65541.0,0.002]
[1727606486883,0.086675,65542.0,65541.0,0.2168375]
[1727606494095,0.22525286,65542.0,65541.0,0.002]
[1727606494997,0.22526866,65542.0,65541.0,0.002]
[1727606499886,0.22528387,65542.0,65541.0,0.002]
[1727606502103,0.086675,65542.0,65541.0,0.2168172]
[1727606504898,0.086675,65542.0,65541.0,0.21678046]
[1727606509003,0.086675,65542.0,65541.0,0.0999855]
[1727606509714,0.086675,65542.0,65541.0,0.09994781]
[1727606510607,0.086675,65542.0,65541.0,0.19151664]
[1727606513709,0.086675,65542.0,65541.0,0.09994781]
[1727606514716,0.086675,65542.0,65541.0,0.09996464]
[1727606516810,0.076675,65542.0,65541.0,0.09996464]
[1727606517005,0.076675,65542.0,65541.0,0.002]
[1727606517407,0.17284992,65542.0,65541.0,0.002]
[1727606517912,0.08657492,65542.0,65541.0,0.078276]
[1727606519608,0.0865604,65542.0,65541.0,0.078276]
[1727606523109,0.0865635,65542.0,65541.0,0.078276]
[1727606524117,0.0865635,65542.0,65541.0,0.29300407]
[1727606524118,0.0004,65542.0,65541.0,0.29300407]
[1727606526703,0.0104,65542.0,65541.0,0.29300407]
[1727606527807,0.0104,65542.0,65541.0,0.29299837]
[1727606529314,0.086675,65542.0,65541.0,0.29299837]
[1727606531320,0.086675,65542.0,65541.0,0.21672237]
[1727606532120,0.17294734,65542.0,65541.0,0.002]
[1727606536220,0.19328668,65542.0,65541.0,0.002]
[1727606536429,0.23320823,65542.0,65541.0,0.002]
[1727606537636,0.23320143,65542.0,65541.0,0.002]
[1727606538331,0.15692643,65542.0,65541.0,0.002]
[1727606539029,0.0104,65542.0,65541.0,0.21673923]
[1727606539218,0.0004,65542.0,65541.0,0.21673923]
[1727606540646,0.0104,65542.0,65541.0,0.21673923]
[1727606541140,0.0104,65542.0,65541.0,0.29301523]
[1727606542132,0.0004,65542.0,65541.0,0.29301523]
[1727606542544,0.0004,65542.0,65541.0,0.29305381]
[1727606547038,0.08656502,65542.0,65541.0,0.078276]
[1727606547548,0.08656516,65542.0,65541.0,0.078276]
[1727606550251,0.04027195,65542.0,65541.0,0.078276]
[1727606551947,0.08655227,65542.0,65541.0,0.078276]
[1727606552146,0.08655252,65542.0,65541.0,0.078276]
[1727606554150,0.0004,65542.0,65541.0,0.29304871]
[1727606561862,0.0004,65542.0,65541.0,0.29307034]
[1727606562363,0.0004,65542.0,65541.0,0.17626783]
[1727606565066,0.0004,65542.0,65541.0,0.17627347]
[1727606569165,0.09292244,65542.0,65541.0,0.078276]
[1727606569366,0.08650562,65542.0,65540.0,0.02775981]
[1727606569572,0.08650562,65542.0,65540.0,0.076277]
[1727606569573,0.13918366,65541.0,65540.0,0.076277]
[1727606570571,0.13918366,65541.0,65540.0,0.086277]
[1727606571566,0.13918366,65541.0,65540.0,0.087277]
[1727606571875,0.13918366,65541.0,65540.0,0.077277]
[1727606572071,0.13918366,65541.0,65540.0,0.078277]
[1727606574177,0.13918366,65541.0,65540.0,0.088277]
[1727606577367,0.0004,65542.0,65540.0,0.30428485]
[1727606577674,0.0004,65542.0,65541.0,0.21600785]
[1727606577971,0.0004,65542.0,65541.0,0.30228385]
[1727606578766,0.0004,65542.0,65541.0,0.30328385]
[1727606579274,0.0004,65542.0,65541.0,0.30428385]
[1727606580477,0.0004,65542.0,65541.0,0.29428385]
[1727606580981,0.0004,65542.0,65541.0,0.29437421]
[1727606584485,0.12223913,65542.0,65541.0,0.078276]
[1727606584682,0.1677161,65542.0,65541.0,0.078276]
[1727606584873,0.20688504,65542.0,65541.0,0.078276]
[1727606585183,0.20688531,65542.0,65541.0,0.078276]
[1727606587880,0.21688531,65542.0,65541.0,0.078276]
[1727606588181,0.09504618,65542.0,65541.0,0.078276]
[1727606589270,0.08504618,65542.0,65541.0,0.078276]
[1727606589881,0.08509517,65542.0,65541.0,0.078276]
[1727606590376,0.09509517,65542.0,65541.0,0.078276]
[1727606592269,0.0104,65542.0,65541.0,0.29429172]
[1727606593385,0.0004,65542.0,65541.0,0.29429172]
[1727606599991,0.0004,65542.0,65541.0,0.30429172]
[1727606603181,0.0004,65542.0,65541.0,0.27841119]
[1727606603383,0.0004,65542.0,65541.0,0.30433418]
[1727606605190,0.0004,65542.0,65541.0,0.18682504]
[1727606605505,0.0004,65542.0,65541.0,0.30433514]
[1727606606294,0.13676725,65542.0,65541.0,0.088276]
[1727606608983,0.08500641,65542.0,65541.0,0.078276]
[1727606613403,0.08500641,65542.0,65541.0,0.098276]
[1727606613598,0.1218544,65544.0,65541.0,0.3828]
[1727606613794,0.0036,65548.0,65547.0,0.076269]
[1727606614100,0.0004,65549.0,65548.0,0.076268]
[1727606614298,0.0004,65554.0,65548.0,0.65631392]
[1727606614491,0.076659,65556.0,65550.0,0.10672626]
[1727606614691,0.106659,65556.0,65551.0,0.22670436]
[1727606614886,0.106659,65556.0,65552.0,0.22670436]
[1727606614887,0.076261,65555.0,65552.0,0.22670436]
[1727606615082,0.076261,65555.0,65553.0,0.22670436]
[1727606615284,0.076261,65555.0,65554.0,0.22670436]
[1727606615787,0.096261,65555.0,65554.0,0.19488017]
[1727606616091,0.127861,65555.0,65554.0,0.19488017]
[1727606616498,0.127861,65555.0,65554.0,0.19588017]
[1727606616699,0.127861,65555.0,65554.0,0.19688017]
[1727606616903,0.107861,65555.0,65554.0,0.19688017]
[1727606617996,0.117861,65555.0,65554.0,0.19688017]
[1727606618396,0.117861,65555.0,65554.0,0.10542533]
[1727606619098,0.107861,65555.0,65554.0,0.19688017]
[1727606619305,0.107861,65555.0,65554.0,0.10542533]
[1727606619801,0.468661,65555.0,65554.0,0.10542533]
[1727606621202,0.107861,65555.0,65554.0,0.10542533]
[1727606621393,0.51547393,65555.0,65554.0,0.002]
[1727606621704,0.55389241,65555.0,65554.0,0.002]
[1727606622000,0.19309241,65555.0,65554.0,0.002]
[1727606622190,0.55389241,65555.0,65554.0,0.002]
[1727606623696,0.61700808,65555.0,65554.0,0.002]
[1727606624002,0.25623714,65555.0,65554.0,0.002]
[1727606624203,0.61703714,65555.0,65554.0,0.002]
[1727606624707,0.25623714,65555.0,65554.0,0.002]
[1727606624912,0.61703714,65555.0,65554.0,0.002]
[1727606625289,0.61703467,65555.0,65554.0,0.002]
[1727606625497,0.25623467,65555.0,65554.0,0.002]
[1727606625694,0.61703467,65555.0,65554.0,0.002]
[1727606627800,0.7538213,65555.0,65554.0,0.002]
[1727606628899,0.75396448,65555.0,65554.0,0.002]
[1727606629102,0.6919313,65555.0,65554.0,0.002]
[1727606629494,0.498661,65555.0,65554.0,0.10531991]
[1727606633907,0.467061,65555.0,65554.0,0.10531991]
[1727606636398,0.5002716,65555.0,65554.0,0.002]
[1727606637302,0.1394716,65555.0,65554.0,0.002]
[1727606641311,0.24584054,65555.0,65554.0,0.002]
[1727606642214,0.13954115,65555.0,65554.0,0.002]
[1727606642724,0.17819469,65555.0,65554.0,0.002]
[1727606642924,0.13954115,65555.0,65554.0,0.002]
[1727606643334,0.17821442,65555.0,65554.0,0.002]
[1727606644333,0.106261,65555.0,65554.0,0.22868407]
[1727606644638,0.03,65555.0,65554.0,0.22868407]
[1727606645228,0.106261,65555.0,65554.0,0.22868407]
[1727606652044,0.106261,65555.0,65554.0,0.22780069]
[1727606655445,0.106261,65555.0,65554.0,0.22774882]
[1727606659452,0.30087082,65555.0,65554.0,0.002]
[1727606661654,0.26162207,65555.0,65554.0,0.002]
[1727606661867,0.3008609,65555.0,65554.0,0.002]
[1727606666559,0.106261,65555.0,65554.0,0.22797453]
[1727606671357,0.106261,65555.0,65554.0,0.22804759]
[1727606674567,0.17910259,65555.0,65554.0,0.002]
[1727606674987,0.30066758,65555.0,65554.0,0.002]
[1727606676369,0.17910259,65555.0,65554.0,0.002]
[1727606676671,0.17910259,65555.0,65554.0,0.078261]
[1727606676873,0.17910259,65555.0,65554.0,0.002]
[1727606678974,0.12920259,65555.0,65554.0,0.002]
[1727606679170,0.0036,65561.0,65554.0,0.4728]
[1727606679363,0.004,65562.0,65561.0,0.076253]
[1727606679565,0.0004,65562.0,65561.0,0.39820209]
[1727606680766,0.0004,65562.0,65561.0,0.39920209]
[1727606681167,0.0004,65562.0,65561.0,0.39820209]
[1727606681474,0.0004,65562.0,65561.0,0.39920209]
[1727606681771,0.0004,65562.0,65561.0,0.50159955]
[1727606683271,0.0004,65562.0,65561.0,0.50259955]
[1727606683663,0.0004,65562.0,65561.0,0.58842898]
[1727606683858,0.0004,65562.0,65561.0,0.61227049]
[1727606684570,0.0004,65562.0,65561.0,0.97307049]
[1727606684766,0.0004,65562.0,65561.0,0.92538747]
[1727606685562,0.0004,65562.0,65561.0,1.00145534]
[1727606687165,0.0004,65562.0,65561.0,1.02930182]
[1727606687367,0.0004,65562.0,65561.0,0.92690436]
[1727606688077,0.0004,65562.0,65561.0,0.9672006]
[1727606688579,0.0004,65562.0,65561.0,0.86491644]
[1727606688883,0.0004,65562.0,65561.0,0.96719091]
[1727606689065,0.0004,65562.0,65561.0,0.86491644]
[1727606689269,0.0004,65562.0,65561.0,0.87491644]
[1727606689979,0.0004,65562.0,65561.0,0.79884857]
[1727606696780,0.0004,65562.0,65561.0,0.43804857]
[1727606696976,0.0004,65562.0,65561.0,0.79884857]
[1727606696977,0.07416325,65562.0,65561.0,0.79884857]
[1727606698876,0.07416325,65562.0,65561.0,0.82269011]
[1727606699980,0.07416325,65562.0,65561.0,0.46189011]
[1727606700180,0.07416325,65562.0,65561.0,0.82269011]
[1727606700380,0.07416325,65562.0,65561.0,0.81269011]
[1727606700787,0.07412325,65562.0,65561.0,0.81269011]
[1727606701080,0.07412325,65562.0,65561.0,0.82269011]
[1727606701978,0.19574001,65562.0,65561.0,0.82269011]
[1727606702985,0.19574001,65562.0,65561.0,0.46189011]
[1727606703179,0.19574001,65562.0,65561.0,0.79884857]
[1727606703486,0.07417502,65562.0,65561.0,0.43804857]
[1727606703788,0.07417502,65562.0,65561.0,0.82269015]
[1727606703977,0.07420297,65562.0,65561.0,0.82269015]
[1727606704687,0.031,65567.0,65561.0,1.04716528]
[1727606704981,0.031,65567.0,65562.0,0.22447513]
[1727606705187,0.107246,65567.0,65563.0,0.22447513]
[1727606705386,0.107246,65567.0,65564.0,0.22447513]
[1727606705593,0.138446,65567.0,65565.0,0.22447513]
[1727606705883,0.138446,65567.0,65561.0,0.90137483]
[1727606705884,0.138446,65567.0,65566.0,0.10242254]
[1727606707385,0.138446,65567.0,65566.0,0.22418616]
[1727606707579,0.138446,65567.0,65566.0,0.22518616]
[1727606709092,0.138446,65567.0,65566.0,0.22618616]
[1727606711793,0.17312339,65567.0,65566.0,0.002]
[1727606713985,0.213384,65567.0,65566.0,0.002]
[1727606716098,0.09687739,65567.0,65566.0,0.002]
[1727606718300,0.13714393,65567.0,65566.0,0.002]
[1727606718798,0.09687739,65567.0,65566.0,0.002]
[1727606719501,0.13715029,65567.0,65566.0,0.002]
[1727606719700,0.0622,65567.0,65566.0,0.36782942]
[1727606721187,0.3608,65571.0,65566.0,0.40782942]
[1727606721401,0.3608,65571.0,65567.0,0.47263195]
[1727606721600,0.3608,65571.0,65568.0,0.22424772]
[1727606721806,0.3608,65571.0,65569.0,0.22424772]
[1727606722008,0.437041,65571.0,65570.0,0.22424772]
[1727606722592,0.49599,65577.0,65571.0,0.076241]
[1727606722795,0.49239,65577.0,65572.0,0.47212778]
[1727606722994,0.49239,65577.0,65573.0,0.22420222]
[1727606723294,0.49239,65577.0,65574.0,0.22420222]
[1727606723494,0.49239,65577.0,65572.0,0.10680253]
[1727606723495,0.49239,65577.0,65575.0,0.22420222]
[1727606723791,0.568624,65577.0,65576.0,0.22420222]
[1727606725698,0.568624,65577.0,65576.0,0.22520222]
[1727606726307,0.568624,65577.0,65576.0,0.22620222]
[1727606726809,0.64460904,65577.0,65576.0,0.002]
[1727606727101,0.7661944,65577.0,65576.0,0.002]
[1727606727506,0.64460904,65577.0,65576.0,0.002]
[1727606728704,0.7661944,65577.0,65576.0,0.002]
[1727606731910,0.64460904,65577.0,65576.0,0.002]
[1727606732707,0.568624,65577.0,65576.0,0.002]
[1727606732916,0.64460693,65577.0,65576.0,0.002]
[1727606734810,0.64460693,65577.0,65576.0,0.22478435]
[1727606734811,0.51522691,65577.0,65576.0,0.22478435]
[1727606735809,0.51522691,65577.0,65576.0,0.10363697]
[1727606736002,0.51522691,65577.0,65576.0,0.22432703]
[1727606740608,0.46946063,65577.0,65576.0,0.22432703]
[1727606742215,0.39322663,65577.0,65576.0,0.22432703]
[1727606745509,0.39322663,65577.0,65576.0,0.12208314]
[1727606745825,0.39322663,65577.0,65576.0,0.22282727]
[1727606747216,0.39322663,65577.0,65576.0,0.23282727]
[1727606750025,0.42949815,65577.0,65576.0,0.002]
[1727606750827,0.42949815,65577.0,65576.0,0.0258364]
[1727606751024,0.42949815,65577.0,65576.0,0.06397464]
[1727606752918,0.53597003,65577.0,65576.0,0.06397464]
[1727606753221,0.53597003,65577.0,65576.0,0.0258364]
[1727606753427,0.53597003,65577.0,65576.0,0.002]
[1727606754029,0.42949815,65577.0,65576.0,0.002]
[1727606754230,0.53597003,65577.0,65576.0,0.002]
[1727606755325,0.42949815,65577.0,65576.0,0.002]
[1727606755926,0.47162524,65577.0,65576.0,0.002]
[1727606756430,0.53607887,65577.0,65576.0,0.002]
[1727606756934,0.33983412,65577.0,65576.0,0.36231734]
[1727606758334,0.33983412,65577.0,65576.0,0.36131734]
[1727606758527,0.33983412,65577.0,65576.0,0.36231734]
[1727606758734,0.33983412,65577.0,65576.0,0.36131734]
[1727606758922,0.33983412,65577.0,65576.0,0.36231734]
[1727606760538,0.29406893,65577.0,65576.0,0.36231734]
[1727606760835,0.29406893,65577.0,65576.0,0.36098162]
[1727606762745,0.29406893,65577.0,65576.0,0.72178162]
[1727606763940,0.29406893,65577.0,65576.0,0.3628]
[1727606763941,0.3745021,65577.0,65576.0,0.3628]
[1727606764831,0.08043317,65577.0,65576.0,0.3628]
[1727606765030,0.08041519,65577.0,65576.0,0.3628]
[1727606769638,0.08041519,65577.0,65576.0,0.42477381]
[1727606769836,0.0432961,65578.0,65576.0,0.41047216]
[1727606770143,0.08058667,65577.0,65576.0,0.41047216]
[1727606770735,0.08058667,65577.0,65576.0,0.52011813]
[1727606771139,0.08058667,65577.0,65576.0,0.51811813]
[1727606771340,0.08058667,65577.0,65576.0,0.52011813]
[1727606772141,0.0322,65581.0,65576.0,0.99998639]
[1727606772330,0.0322,65581.0,65579.0,0.10674265]
[1727606772530,0.0322,65581.0,65580.0,0.21938428]
[1727606773039,0.0422,65581.0,65580.0,0.21938428]
[1727606773236,0.11843,65581.0,65580.0,0.21938428]
[1727606774543,0.11843,65581.0,65580.0,0.22038428]
[1727606775343,0.11843,65581.0,65580.0,0.22138428]
[1727606776637,0.11843,65581.0,65580.0,0.32812693]
[1727606778545,0.11839,65581.0,65580.0,0.4661301]
[1727606778934,0.11839,65581.0,65580.0,0.10208582]
[1727606779539,0.11839,65581.0,65580.0,0.10171834]
[1727606781745,0.11839,65581.0,65580.0,0.10071834]
[1727606781937,0.11839,65581.0,65580.0,0.10171834]
[1727606783644,0.47919,65581.0,65580.0,0.17799091]
[1727606784639,0.47919,65581.0,65580.0,0.002]
[1727606786950,0.77728114,65581.0,65580.0,0.00104088]
[1727606788253,0.60983343,65581.0,65580.0,0.00104088]
[1727606793761,0.57240573,65581.0,65580.0,0.00104088]
[1727606794057,0.47919,65581.0,65580.0,0.21980453]
[1727606794960,0.47919,65581.0,65580.0,0.10084356]
[1727606795753,0.11839,65581.0,65580.0,0.10084356]
[1727606795960,0.47919,65581.0,65580.0,0.10084356]
[1727606797460,0.47919,65581.0,65580.0,0.21977973]
[1727606800147,0.47919,65581.0,65580.0,0.10084356]
[1727606801157,0.44703,65581.0,65580.0,0.10084356]
[1727606802155,0.48461364,65581.0,65580.0,0.00104088]
[1727606802363,0.59120499,65581.0,65580.0,0.00104088]
[1727606803560,0.48461364,65581.0,65580.0,0.00104088]
[1727606803959,0.59120872,65581.0,65580.0,0.00104088]
[1727606804462,0.48461364,65581.0,65580.0,0.00104088]
[1727606804955,0.59121111,65581.0,65580.0,0.00104088]
[1727606805367,0.48461364,65581.0,65580.0,0.00104088]
[1727606806663,0.12381364,65581.0,65580.0,0.00104088]
[1727606807564,0.28928755,65581.0,65580.0,0.00104088]
[1727606808454,0.28930188,65581.0,65580.0,0.00104088]
[1727606809056,0.20805412,65581.0,65580.0,0.21973915]
[1727606809260,0.08623,65581.0,65580.0,0.21973915]
[1727606817155,0.076233,65578.0,65577.0,0.10674265]
[1727606817356,0.16795306,65578.0,65577.0,0.10674265]
[1727606817566,0.21770336,65578.0,65577.0,0.10674265]
[1727606818359,0.21770336,65578.0,65577.0,0.10774265]
[1727606818756,0.21770336,65578.0,65577.0,0.10874265]
[1727606818757,0.21870336,65578.0,65577.0,0.10874265]
[1727606820860,0.21870336,65578.0,65577.0,0.002]
[1727606821762,0.21868807,65578.0,65577.0,0.002]
[1727606824161,0.087633,65578.0,65577.0,0.22080016]
[1727606826365,0.087633,65578.0,65577.0,0.22069156]
[1727606830973,0.087633,65578.0,65577.0,0.10176979]
[1727606831175,0.087633,65578.0,65577.0,0.19347094]
[1727606831381,0.087633,65578.0,65577.0,0.1019546]
[1727606831982,0.163866,65578.0,65577.0,0.1019546]
[1727606832173,0.163866,65578.0,65577.0,0.06300294]
[1727606833173,0.163866,65578.0,65577.0,0.002]
[1727606835779,0.524666,65578.0,65577.0,0.002]
[1727606838977,0.163866,65578.0,65577.0,0.002]
[1727606839280,0.60537051,65578.0,65577.0,0.002]
[1727606840787,0.60537665,65578.0,65577.0,0.002]
[1727606841393,0.72718068,65578.0,65577.0,0.002]
[1727606843596,0.36638068,65578.0,65577.0,0.002]
[1727606843790,0.72718068,65578.0,65577.0,0.002]
[1727606844387,0.36638068,65578.0,65577.0,0.002]
[1727606844593,0.72718068,65578.0,65577.0,0.002]
[1727606845798,0.72718597,65578.0,65577.0,0.002]
[1727606846496,0.60538194,65578.0,65577.0,0.002]
[1727606847395,0.524666,65578.0,65577.0,0.10193636]
[1727606850491,0.163866,65578.0,65577.0,0.10193636]
[1727606850803,0.524666,65578.0,65577.0,0.10193636]
[1727606852504,0.163866,65578.0,65577.0,0.10193636]
[1727606852697,0.524666,65578.0,65577.0,0.10193636]
[1727606854509,0.56194039,65578.0,65577.0,0.002]
[1727606855602,0.56195775,65578.0,65577.0,0.002]
[1727606856600,0.20115775,65578.0,65577.0,0.002]
[1727606856800,0.56195775,65578.0,65577.0,0.002]
[1727606857697,0.66853165,65578.0,65577.0,0.002]
[1727606858111,0.71183627,65578.0,65577.0,0.002]
[1727606858410,0.60526237,65578.0,65577.0,0.002]
[1727606858915,0.24446237,65578.0,65577.0,0.002]
[1727606859100,0.60526237,65578.0,65577.0,0.002]
[1727606861812,0.24446237,65578.0,65577.0,0.002]
[1727606862009,0.60526237,65578.0,65577.0,0.002]
[1727606862201,0.56797062,65578.0,65577.0,0.002]
[1727606862407,0.524666,65578.0,65577.0,0.10208707]
[1727606865415,0.524666,65578.0,65577.0,0.10208838]
[1727606865827,0.524666,65578.0,65577.0,0.002]
[1727606866027,0.524666,65578.0,65577.0,0.10208833]
[1727606871629,0.524666,65578.0,65577.0,0.19362012]
[1727606873423,0.524666,65578.0,65577.0,0.10208833]
[1727606877333,0.524666,65578.0,65577.0,0.002]
[1727606877334,0.60522853,65578.0,65577.0,0.002]
[1727606879537,0.65454378,65578.0,65577.0,0.002]
[1727606879926,0.65464099,65578.0,65577.0,0.002]
[1727606883937,0.79181294,65578.0,65577.0,0.002]
[1727606884333,0.448433,65578.0,65577.0,0.22145668]
[1727606885436,0.087633,65578.0,65577.0,0.22145668]
[1727606885643,0.448433,65578.0,65577.0,0.22145668]
[1727606889642,0.087633,65578.0,65577.0,0.22145668]
[1727606890843,0.0114,65578.0,65577.0,0.17835285]
[1727606891137,0.0114,65578.0,65577.0,0.20905285]
[1727606891336,0.0114,65578.0,65577.0,0.56985285]
[1727606892336,0.0114,65578.0,65577.0,0.469734]
[1727606892741,0.0114,65578.0,65577.0,0.53170849]
[1727606894544,0.0114,65578.0,65577.0,0.49257034]
[1727606894835,0.0114,65578.0,65577.0,0.49357034]
[1727606895245,0.0114,65578.0,65577.0,0.52038347]
[1727606895430,0.04919835,65578.0,65577.0,0.52038347]
[1727606896449,0.12543135,65578.0,65577.0,0.52038347]
[1727606897536,0.12543135,65578.0,65577.0,0.49654713]
[1727606897741,0.12540668,65578.0,65577.0,0.49654713]
[1727606898143,0.12540668,65578.0,65577.0,0.42031313]
[1727606898544,0.12540668,65578.0,65577.0,0.38961313]
[1727606899447,0.087633,65578.0,65577.0,0.21977054]
[1727606906548,0.076235,65577.0,65575.0,0.3133354]
[1727606906853,0.0004,65576.0,65573.0,0.079839]
[1727606907153,0.13736399,65574.0,65573.0,0.079839]
[1727606907357,0.26882921,65574.0,65573.0,0.437039]
[1727606908941,0.27082921,65574.0,65573.0,0.438039]
[1727606909143,0.27082921,65574.0,65573.0,0.46552028]
[1727606909357,0.27082921,65574.0,65573.0,0.46652028]